[Event "2nd Cambridge Open 2024"]
[Site "Cambridge"]
[Date "2024.02.21"]
[Round "5.35"]
[White "Ward, Ieuan C"]
[Black "Simpson, Ben"]
[Result "1-0"]
[ECO "A62"]
[WhiteElo "2028"]
[BlackElo "1873"]
[Annotator "RC"]
[PlyCount "61"]
[EventDate "2024.02.18"]
[EventType "swiss"]
[EventCountry "ENG"]
[SourceTitle "playchess.com"]
[Source "ChessBase"]
[SourceQuality "1"]
[TimeControl "5400+30"]

1. d4 {[%emt 0:04:04]} Nf6 {[%emt 0:00:05]} 2. c4 {[%emt 0:00:04]} g6 {[%emt 0:00:04]} 3. Nc3 {[%emt 0:00:03]} Bg7 {[%emt 0:00:04]} 4. Nf3 {[%emt 0:00:04]} O-O {[%emt 0:00:07]} 5. Bg5 {[%emt 0:00:02]} c5 {[%emt 0:00:13]} 6. d5 {[%emt 0:00:03]} h6 {[%emt 0:00:35]} 7. Bd2 {[%emt 0:00:53]} d6 {[%emt 0:00:48]} 8. g3 {[%emt 0:00:13]} e6 {[%emt 0:01:39]} 9. Bg2 {[%emt 0:04:05]} exd5 {[%emt 0:00:05]} 10. cxd5 {[%emt 0:00:05]} Re8 {[%emt 0:02:10]} 11. O-O {[%emt 0:00:18]} Na6 {[%emt 0:00:07]} 12. Ne1 {[%emt 0:03:09]} Nc7 {[%emt 0:00:44]} 13. a4 {[%emt 0:01:12]} b6 {[%emt 0:02:06]} 14. Nc2 {[%emt 0:01:11]} Bf5 {[%emt 0:11:36]} 15. Ne3 {[%emt 0:03:55]} Be4 {[%emt 0:01:43]} 16. Nxe4 {[%emt 0:00:46]} Nxe4 {[%emt 0:00:06]} 17. Bc1 {[%emt 0:05:03]} a6 {[%emt 0:17:28]} 18. h4 {[%emt 0:06:12]} b5 {[%emt 0:14:40]} 19. h5 {[%emt 0:04:14]} Kh7 {[%emt 0:08:05]} 20. Qc2 {[%emt 0:03:43]} Qe7 {[%emt 0:00:40]} 21. Ra3 {[%emt 0:06:14]} c4 {[%emt 0:06:13]} 22. hxg6+ {[%emt 0:11:34]} fxg6 {[%emt 0:00:02]} 23. Nxc4 {[%emt 0:01:48]} bxc4 {[%emt 0:00:53]} 24. Re3 {[%emt 0:00:11]} c3 {[%emt 0:14:08]} 25. Rxe4 {[%emt 0:06:25]} Qf6 {[%emt 0:01:05]} 26. bxc3 {[%emt 0:01:15]} Qxc3 {[%emt 0:01:38]} 27. Qxc3 {[%emt 0:01:11]} Bxc3 {[%emt 0:00:02]} 28. Rc4 {[%emt 0:00:26]} Ba5 {[%emt 0:00:16]} 29. e4 {[%emt 0:03:27]} Re7 {[%emt 0:01:34]} 30. Ba3 {[%emt 0:02:18]} Rd8 {[%emt 0:02:02]} 31. Rc6 {[%emt 0:00:18]} 1-0

[Event "2nd Cambridge Open 2024"]
[Site "Cambridge"]
[Date "2024.02.21"]
[Round "5.36"]
[White "Samarakoon, Vivash Ransara"]
[Black "Crocker, Philip J"]
[Result "1/2-1/2"]
[ECO "C77"]
[WhiteElo "1839"]
[BlackElo "2137"]
[Annotator "RC"]
[PlyCount "57"]
[EventDate "2024.02.18"]
[EventType "swiss"]
[EventCountry "ENG"]
[SourceTitle "playchess.com"]
[Source "ChessBase"]
[SourceQuality "1"]
[TimeControl "5400+30"]

1. e4 {[%emt 0:00:02]} e5 {[%emt 0:00:12]} 2. Nf3 {[%emt 0:00:07]} Nc6 {[%emt 0:00:04]} 3. Bb5 {[%emt 0:00:04]} a6 {[%emt 0:00:11]} 4. Ba4 {[%emt 0:00:04]} Nf6 {[%emt 0:00:13]} 5. O-O {[%emt 0:00:05]} d6 {[%emt 0:00:12]} 6. Re1 {[%emt 0:00:58]} Bd7 {[%emt 0:00:12]} 7. c3 {[%emt 0:00:25]} g6 {[%emt 0:00:23]} 8. d3 {[%emt 0:01:29]} Bg7 {[%emt 0:00:20]} 9. Nbd2 {[%emt 0:02:32]} O-O {[%emt 0:00:19]} 10. Nf1 {[%emt 0:01:00]} h6 {[%emt 0:02:24]} 11. Bb3 {[%emt 0:05:33]} Kh8 {[%emt 0:02:14]} 12. Ng3 {[%emt 0:05:30]} Nh7 {[%emt 0:02:22]} 13. Kh1 {[%emt 0:01:29]} Qe8 {[%emt 0:03:05]} 14. Ng1 {[%emt 0:02:15]} f5 {[%emt 0:01:34]} 15. f4 {[%emt 0:04:41]} fxe4 {[%emt 0:04:56]} 16. Nxe4 {[%emt 0:02:09]} Qd8 {[%emt 0:04:50]} 17. Rf1 {[%emt 0:17:16]} Qe7 {[%emt 0:07:30]} 18. Qc2 {[%emt 0:11:29]} g5 {[%emt 0:02:44]} 19. g3 {[%emt 0:01:23]} gxf4 {[%emt 0:02:00]} 20. gxf4 {[%emt 0:00:07]} Qh4 {[%emt 0:05:37]} 21. Nf3 {[%emt 0:01:49]} Qh3 {[%emt 0:01:32]} 22. Qg2 {[%emt 0:00:29]} exf4 {[%emt 0:02:38]} 23. Qxh3 {[%emt 0:00:44]} Bxh3 {[%emt 0:00:05]} 24. Nh4 {[%emt 0:00:14]} Ne7 {[%emt 0:10:50]} 25. Rxf4 {[%emt 0:08:53]} Rxf4 {[%emt 0:02:11]} 26. Bxf4 {[%emt 0:00:04]} Rf8 {[%emt 0:00:41]} 27. Be3 {[%emt 0:00:25]} Nf6 {[%emt 0:02:17]} 28. Nf2 {[%emt 0:01:22]} Ng4 {[%emt 0:06:58]} 29. Nxh3 {[%emt 0:01:03]} 1/2-1/2

[Event "2nd Cambridge Open 2024"]
[Site "Cambridge"]
[Date "2024.02.21"]
[Round "5.37"]
[White "McMahon, Paul"]
[Black "Okhai, Shabir"]
[Result "0-1"]
[ECO "C91"]
[WhiteElo "1862"]
[BlackElo "2114"]
[Annotator "RC"]
[PlyCount "71"]
[EventDate "2024.02.18"]
[EventType "swiss"]
[EventCountry "ENG"]
[SourceTitle "playchess.com"]
[Source "ChessBase"]
[SourceQuality "1"]
[TimeControl "5400+30"]

1. e4 {[%emt 0:00:05]} e5 {[%emt 0:00:05]} 2. Nf3 {[%emt 0:00:07]} Nc6 {[%emt 0:00:03]} 3. Bb5 {[%emt 0:00:12]} a6 {[%emt 0:00:04]} 4. Ba4 {[%emt 0:00:08]} Nf6 {[%emt 0:00:03]} 5. O-O {[%emt 0:00:18]} Be7 {[%emt 0:00:03]} 6. Re1 {[%emt 0:00:21]} b5 {[%emt 0:00:04]} 7. Bb3 {[%emt 0:00:09]} O-O {[%emt 0:00:05]} 8. c3 {[%emt 0:02:08]} d6 {[%emt 0:00:06]} 9. d4 {[%emt 0:01:08]} Bg4 {[%emt 0:00:56]} 10. d5 {[%emt 0:01:44]} Na5 {[%emt 0:01:32]} 11. Bc2 {[%emt 0:00:33]} c6 {[%emt 0:01:30]} 12. a4 {[%emt 0:05:18]} cxd5 {[%emt 0:02:21]} 13. exd5 {[%emt 0:00:52]} Nc4 {[%emt 0:04:42]} 14. b3 {[%emt 0:32:24]} Nb6 {[%emt 0:00:58]} 15. axb5 {[%emt 0:01:25]} axb5 {[%emt 0:01:59]} 16. Rxa8 {[%emt 0:02:29]} Qxa8 {[%emt 0:00:33]} 17. Nbd2 {[%emt 0:10:10]} Nbxd5 {[%emt 0:14:28]} 18. Bb2 {[%emt 0:00:21]} Nf4 {[%emt 0:03:25]} 19. Qb1 {[%emt 0:03:39]} h6 {[%emt 0:07:10]} 20. Bf5 {[%emt 0:06:58]} Bxf5 {[%emt 0:05:47]} 21. Qxf5 {[%emt 0:00:05]} Qc8 {[%emt 0:00:38]} 22. Qxc8 {[%emt 0:07:05]} Rxc8 {[%emt 0:00:08]} 23. c4 {[%emt 0:00:16]} Nd3 {[%emt 0:03:47]} 24. Rb1 {[%emt 0:00:03]} bxc4 {[%emt 0:02:07]} 25. Nxc4 {[%emt 0:03:35]} d5 {[%emt 0:01:24]} 26. Ne3 {[%emt 0:01:01]} Bd6 {[%emt 0:12:06]} 27. Kf1 {[%emt 0:02:08]} Nxb2 {[%emt 0:05:29]} 28. Rxb2 {[%emt 0:00:04]} e4 {[%emt 0:00:57]} 29. Nd4 {[%emt 0:03:10]} Rc1+ {[%emt 0:01:43]} 30. Ke2 {[%emt 0:00:09]} Bb4 {[%emt 0:01:50]} 31. Nec2 {[%emt 0:02:47]} Bc3 {[%emt 0:01:34]} 32. Ra2 {[%emt 0:00:03]} Ng4 {[%emt 0:05:14]} 33. Ra8+ {[%emt 0:02:31]} Kh7 {[%emt 0:00:02]} 34. h3 {[%emt 0:00:30]} Ne5 {[%emt 0:01:44]} 35. Ra6 {[%emt 0:00:53]} Nd3 {[%emt 0:01:12]} 36. g3 {[%emt 0:02:48]} 0-1

[Event "2nd Cambridge Open 2024"]
[Site "Cambridge"]
[Date "2024.02.21"]
[Round "5.38"]
[White "Gardiner, Eric D"]
[Black "Homer, Stephen J"]
[Result "1/2-1/2"]
[ECO "B22"]
[WhiteElo "1837"]
[BlackElo "2045"]
[Annotator "RC"]
[PlyCount "96"]
[EventDate "2024.02.18"]
[EventType "swiss"]
[EventCountry "ENG"]
[SourceTitle "playchess.com"]
[Source "ChessBase"]
[SourceQuality "1"]
[TimeControl "5400+30"]

1. e4 {[%emt 0:00:05]} c5 {[%emt 0:00:04]} 2. c3 {[%emt 0:00:10]} d5 {[%emt 0:00:57]} 3. exd5 {[%emt 0:00:11]} Qxd5 {[%emt 0:00:03]} 4. d4 {[%emt 0:00:14]} Nf6 {[%emt 0:00:37]} 5. Nf3 {[%emt 0:00:13]} e6 {[%emt 0:00:05]} 6. Na3 {[%emt 0:03:20]} a6 {[%emt 0:00:43]} 7. Nc4 {[%emt 0:00:35]} Nbd7 {[%emt 0:01:39]} 8. Be2 {[%emt 0:00:58]} Be7 {[%emt 0:04:19]} 9. O-O {[%emt 0:00:24]} O-O {[%emt 0:01:29]} 10. Re1 {[%emt 0:01:09]} cxd4 {[%emt 0:08:36]} 11. Nxd4 {[%emt 0:03:43]} Qc5 {[%emt 0:02:18]} 12. Qd3 {[%emt 0:06:33]} Ne5 {[%emt 0:05:06]} 13. Nxe5 {[%emt 0:00:53]} Qxe5 {[%emt 0:00:04]} 14. Bd2 {[%emt 0:04:07]} Qc7 {[%emt 0:08:36]} 15. Rad1 {[%emt 0:03:56]} Bd7 {[%emt 0:07:50]} 16. Bf3 {[%emt 0:03:35]} Rfd8 {[%emt 0:03:58]} 17. Qe2 {[%emt 0:11:38]} Re8 {[%emt 0:05:25]} 18. Bg5 {[%emt 0:04:15]} Ng4 {[%emt 0:01:45]} 19. Bxg4 {[%emt 0:01:42]} Bxg5 {[%emt 0:00:08]} 20. Nf3 {[%emt 0:01:39]} Bf6 {[%emt 0:01:03]} 21. Ne5 {[%emt 0:03:56]} Bxe5 {[%emt 0:03:58]} 22. Qxe5 {[%emt 0:00:09]} Qxe5 {[%emt 0:00:11]} 23. Rxe5 {[%emt 0:00:07]} Bc6 {[%emt 0:00:14]} 24. Bf3 {[%emt 0:05:37]} Bxf3 {[%emt 0:00:15]} 25. gxf3 {[%emt 0:02:42]} f6 {[%emt 0:02:11]} 26. Rc5 {[%emt 0:00:19]} Re7 {[%emt 0:00:20]} 27. Rd6 {[%emt 0:01:58]} Kf7 {[%emt 0:00:16]} 28. a4 {[%emt 0:02:07]} g5 {[%emt 0:01:13]} 29. b4 {[%emt 0:03:58]} Kg6 {[%emt 0:17:32]} 30. b5 {[%emt 0:02:25]} axb5 {[%emt 0:00:18]} 31. axb5 {[%emt 0:00:11]} Rg8 {[%emt 0:05:08]} 32. b6 {[%emt 0:00:46]} Rgg7 {[%emt 0:00:47]} 33. Rd8 {[%emt 0:00:52]} e5 {[%emt 0:00:26]} 34. Rcd5 {[%emt 0:03:52]} Kf5 {[%emt 0:00:23]} 35. Kf1 {[%emt 0:06:55]} h5 {[%emt 0:06:18]} 36. h3 {[%emt 0:02:32]} Kf4 {[%emt 0:05:02]} 37. Ke2 {[%emt 0:01:17]} Re6 {[%emt 0:03:15]} 38. R8d6 {[%emt 0:02:24]} Rge7 {[%emt 0:00:30]} 39. c4 {[%emt 0:01:06]} e4 {[%emt 0:01:25]} 40. fxe4 {[%emt 0:00:32]} Rxd6 {[%emt 0:01:08]} 41. Rxd6 {[%emt 0:00:24]} Kxe4 {[%emt 0:00:39]} 42. f3+ {[%emt 0:09:28]} Kf4+ {[%emt 0:01:04]} 43. Kf2 {[%emt 0:00:15]} f5 {[%emt 0:00:23]} 44. c5 {[%emt 0:00:40]} g4 {[%emt 0:01:00]} 45. fxg4 {[%emt 0:00:46]} hxg4 {[%emt 0:00:12]} 46. hxg4 {[%emt 0:00:29]} Kxg4 {[%emt 0:00:18]} 47. c6 {[%emt 0:01:57]} bxc6 {[%emt 0:00:10]} 48. Rxc6 {[%emt 0:00:05]} Rb7 {[%emt 0:02:15]} 1/2-1/2

[Event "2nd Cambridge Open 2024"]
[Site "Cambridge"]
[Date "2024.02.21"]
[Round "5.39"]
[White "Hutchinson, Paul A"]
[Black "Woods, Yannick"]
[Result "1/2-1/2"]
[ECO "E61"]
[WhiteElo "2013"]
[BlackElo "1856"]
[Annotator "RC"]
[PlyCount "148"]
[EventDate "2024.02.18"]
[EventType "swiss"]
[EventCountry "ENG"]
[SourceTitle "playchess.com"]
[Source "ChessBase"]
[SourceQuality "1"]
[TimeControl "5400+30"]

1. d4 {[%emt 0:00:01]} Nf6 {[%emt 0:00:10]} 2. c4 {[%emt 0:00:16]} g6 {[%emt 0:00:15]} 3. Nc3 {[%emt 0:00:06]} Bg7 {[%emt 0:00:06]} 4. Bg5 {[%emt 0:00:07]} d6 {[%emt 0:01:01]} 5. e3 {[%emt 0:00:07]} O-O {[%emt 0:00:12]} 6. Be2 {[%emt 0:00:06]} Nbd7 {[%emt 0:01:45]} 7. Nf3 {[%emt 0:00:14]} c6 {[%emt 0:03:05]} 8. Qc2 {[%emt 0:01:14]} Qc7 {[%emt 0:02:09]} 9. O-O {[%emt 0:00:16]} h6 {[%emt 0:08:37]} 10. Bh4 {[%emt 0:00:07]} Re8 {[%emt 0:01:31]} 11. Rfd1 {[%emt 0:01:09]} g5 {[%emt 0:10:49]} 12. Bg3 {[%emt 0:00:10]} Nh5 {[%emt 0:00:15]} 13. Rac1 {[%emt 0:04:43]} Nxg3 {[%emt 0:04:23]} 14. hxg3 {[%emt 0:00:07]} Nf6 {[%emt 0:02:06]} 15. b4 {[%emt 0:00:29]} e5 {[%emt 0:02:10]} 16. c5 {[%emt 0:03:23]} dxc5 {[%emt 0:07:40]} 17. bxc5 {[%emt 0:16:56]} e4 {[%emt 0:03:44]} 18. Ne5 {[%emt 0:03:38]} Be6 {[%emt 0:02:15]} 19. Bc4 {[%emt 0:04:21]} Bd5 {[%emt 0:01:34]} 20. Qb3 {[%emt 0:05:22]} Rad8 {[%emt 0:03:39]} 21. Rb1 {[%emt 0:03:27]} Re7 {[%emt 0:04:26]} 22. Bxd5 {[%emt 0:01:50]} Nxd5 {[%emt 0:05:36]} 23. Nc4 {[%emt 0:01:06]} Bf8 {[%emt 0:12:52]} 24. Nd6 {[%emt 0:01:56]} Nxc3 {[%emt 0:01:02]} 25. Qxc3 {[%emt 0:00:07]} b5 {[%emt 0:05:38]} 26. Qc2 {[%emt 0:04:31]} a6 {[%emt 0:09:35]} 27. Nxe4 {[%emt 0:00:31]} Re6 {[%emt 0:00:43]} 28. g4 {[%emt 0:01:12]} Rde8 {[%emt 0:00:34]} 29. Nd2 {[%emt 0:06:11]} Bg7 {[%emt 0:01:43]} 30. Nf1 {[%emt 0:01:38]} Re4 {[%emt 0:00:42]} 31. f3 {[%emt 0:03:37]} R4e7 {[%emt 0:00:05]} 32. d5 {[%emt 0:01:41]} cxd5 {[%emt 0:00:22]} 33. Rxd5 {[%emt 0:00:08]} Re5 {[%emt 0:00:25]} 34. Rbd1 {[%emt 0:00:49]} Bf8 {[%emt 0:01:04]} 35. c6 {[%emt 0:01:04]} Rxd5 {[%emt 0:00:16]} 36. Rxd5 {[%emt 0:00:06]} Rc8 {[%emt 0:00:09]} 37. Qf5 {[%emt 0:00:48]} Qxc6 {[%emt 0:01:13]} 38. Ng3 {[%emt 0:07:37]} Re8 {[%emt 0:01:31]} 39. Ne4 {[%emt 0:02:02]} Re6 {[%emt 0:01:17]} 40. Kf2 {[%emt 0:16:18]} Qc2+ {[%emt 0:00:46]} 41. Rd2 {[%emt 0:00:22]} Qc6 {[%emt 0:00:10]} 42. Qd5 {[%emt 0:01:33]} Qxd5 {[%emt 0:00:45]} 43. Rxd5 {[%emt 0:00:09]} Rc6 {[%emt 0:00:09]} 44. Ke2 {[%emt 0:00:17]} Bb4 {[%emt 0:00:54]} 45. Kd3 {[%emt 0:01:57]} Kf8 {[%emt 0:00:55]} 46. Ng3 {[%emt 0:00:43]} Ke7 {[%emt 0:01:05]} 47. Nf5+ {[%emt 0:00:10]} Ke6 {[%emt 0:00:56]} 48. Rd4 {[%emt 0:02:40]} Rc3+ {[%emt 0:00:41]} 49. Ke4 {[%emt 0:01:50]} Bc5 {[%emt 0:00:46]} 50. Rd2 {[%emt 0:01:58]} a5 {[%emt 0:00:33]} 51. Nd4+ {[%emt 0:00:34]} Bxd4 {[%emt 0:00:10]} 52. Kxd4 {[%emt 0:00:12]} Rc4+ {[%emt 0:00:21]} 53. Kd3 {[%emt 0:00:10]} Kd5 {[%emt 0:00:22]} 54. g3 {[%emt 0:00:56]} b4 {[%emt 0:00:23]} 55. Rb2 {[%emt 0:03:07]} Rc3+ {[%emt 0:00:04]} 56. Kd2 {[%emt 0:00:09]} Kc4 {[%emt 0:00:07]} 57. f4 {[%emt 0:00:09]} a4 {[%emt 0:00:23]} 58. f5 {[%emt 0:00:28]} Rd3+ {[%emt 0:01:23]} 59. Ke2 {[%emt 0:01:11]} b3 {[%emt 0:00:51]} 60. axb3+ {[%emt 0:00:19]} axb3 {[%emt 0:00:16]} 61. Rb1 {[%emt 0:00:06]} Rd6 {[%emt 0:00:45]} 62. e4 {[%emt 0:00:27]} Kc3 {[%emt 0:00:30]} 63. Rc1+ {[%emt 0:00:19]} Kb2 {[%emt 0:00:06]} 64. Rc5 {[%emt 0:00:05]} Ka2 {[%emt 0:01:15]} 65. Ra5+ {[%emt 0:00:07]} Kb1 {[%emt 0:00:07]} 66. e5 {[%emt 0:00:07]} Rd7 {[%emt 0:00:16]} 67. e6 {[%emt 0:00:58]} fxe6 {[%emt 0:00:01]} 68. fxe6 {[%emt 0:00:08]} Re7 {[%emt 0:00:48]} 69. Ra6 {[%emt 0:00:07]} b2 {[%emt 0:00:44]} 70. Kd2 {[%emt 0:00:09]} Rc7 {[%emt 0:00:27]} 71. Rb6 {[%emt 0:00:29]} Ka2 {[%emt 0:00:28]} 72. Ra6+ {[%emt 0:00:05]} Kb3 {[%emt 0:00:22]} 73. Rb6+ {[%emt 0:00:06]} Ka2 {[%emt 0:00:14]} 74. Ra6+ {[%emt 0:00:07]} Kb3 {[%emt 0:00:08]} 1/2-1/2

[Event "2nd Cambridge Open 2024"]
[Site "Cambridge"]
[Date "2024.02.21"]
[Round "5.40"]
[White "Yu, Rock"]
[Black "Golubovic, Erik"]
[Result "0-1"]
[ECO "A36"]
[WhiteElo "1767"]
[BlackElo "2025"]
[Annotator "RC"]
[PlyCount "128"]
[EventDate "2024.02.18"]
[EventType "swiss"]
[EventCountry "ENG"]
[SourceTitle "playchess.com"]
[Source "ChessBase"]
[SourceQuality "1"]
[TimeControl "5400+30"]

1. c4 {[%emt 0:00:03]} Nf6 {[%emt 0:00:13]} 2. Nc3 {[%emt 0:00:03]} c5 {[%emt 0:00:11]} 3. g3 {[%emt 0:00:11]} g6 {[%emt 0:00:36]} 4. Bg2 {[%emt 0:00:01]} Bg7 {[%emt 0:00:11]} 5. e4 {[%emt 0:00:20]} Nc6 {[%emt 0:00:32]} 6. Nge2 {[%emt 0:00:08]} d6 {[%emt 0:00:11]} 7. O-O {[%emt 0:00:02]} Bg4 {[%emt 0:01:58]} 8. h3 {[%emt 0:01:04]} Bxe2 {[%emt 0:00:09]} 9. Nxe2 {[%emt 0:00:04]} Nd7 {[%emt 0:00:40]} 10. Rb1 {[%emt 0:00:55]} O-O {[%emt 0:00:45]} 11. a3 {[%emt 0:00:11]} Rb8 {[%emt 0:06:29]} 12. Nc3 {[%emt 0:24:32]} Nd4 {[%emt 0:04:04]} 13. b4 {[%emt 0:04:21]} b6 {[%emt 0:02:01]} 14. Bb2 {[%emt 0:03:07]} e6 {[%emt 0:04:58]} 15. Ne2 {[%emt 0:03:51]} a5 {[%emt 0:07:17]} 16. b5 {[%emt 0:08:20]} Nxe2+ {[%emt 0:02:45]} 17. Qxe2 {[%emt 0:00:47]} Bd4 {[%emt 0:00:46]} 18. d3 {[%emt 0:02:14]} Qf6 {[%emt 0:06:05]} 19. Kh2 {[%emt 0:02:06]} Bxb2 {[%emt 0:02:45]} 20. Qxb2 {[%emt 0:01:01]} Qxb2 {[%emt 0:00:18]} 21. Rxb2 {[%emt 0:00:01]} Rfd8 {[%emt 0:10:56]} 22. g4 {[%emt 0:05:52]} g5 {[%emt 0:05:00]} 23. f4 {[%emt 0:03:31]} h6 {[%emt 0:03:29]} 24. Kg3 {[%emt 0:02:05]} Nf8 {[%emt 0:03:21]} 25. Rbf2 {[%emt 0:05:38]} Rd7 {[%emt 0:01:18]} 26. f5 {[%emt 0:01:12]} exf5 {[%emt 0:04:56]} 27. gxf5 {[%emt 0:01:40]} Nh7 {[%emt 0:11:37]} 28. a4 {[%emt 0:00:48]} Nf6 {[%emt 0:00:25]} 29. Bf3 {[%emt 0:00:02]} Kh7 {[%emt 0:00:44]} 30. Rh2 {[%emt 0:11:53]} Rg8 {[%emt 0:01:43]} 31. Rfh1 {[%emt 0:03:44]} Rdd8 {[%emt 0:00:55]} 32. Kf2 {[%emt 0:01:40]} Rg7 {[%emt 0:19:12]} 33. Rc1 {[%emt 0:03:57]} Kg8 {[%emt 0:00:00]} 34. Rd1 {[%emt 0:01:53]} Kf8 {[%emt 0:00:00]} 35. Ke3 {[%emt 0:03:44]} Ke7 {[%emt 0:00:00]} 36. Rhd2 {[%emt 0:01:52]} h5 {[%emt 0:00:00]} 37. d4 {[%emt 0:01:03]} cxd4+ {[%emt 0:00:00]} 38. Rxd4 {[%emt 0:00:21]} Rgg8 {[%emt 0:00:00]} 39. R4d2 {[%emt 0:02:51]} g4 {[%emt 0:00:00]} 40. hxg4 {[%emt 0:00:01]} hxg4 {[%emt 0:00:00]} 41. Bg2 {[%emt 0:00:27]} g3 {[%emt 0:00:00]} 42. Kf3 {[%emt 0:01:15]} Ng4 {[%emt 0:00:36]} 43. Rd4 {[%emt 0:01:18]} Ne5+ {[%emt 0:00:36]} 44. Ke2 {[%emt 0:00:44]} f6 {[%emt 0:01:32]} 45. Rc1 {[%emt 0:00:45]} Rh8 {[%emt 0:02:13]} 46. Rc3 {[%emt 0:00:37]} Rdg8 {[%emt 0:00:05]} 47. Kf1 {[%emt 0:00:37]} Rh4 {[%emt 0:01:03]} 48. Re3 {[%emt 0:00:52]} Rf4+ {[%emt 0:01:04]} 49. Kg1 {[%emt 0:00:08]} Rf2 {[%emt 0:00:40]} 50. Rxg3 {[%emt 0:00:53]} Rxg3 {[%emt 0:00:12]} 51. Kxf2 {[%emt 0:00:05]} Ra3 {[%emt 0:00:20]} 52. Rd1 {[%emt 0:00:44]} Rxa4 {[%emt 0:00:53]} 53. Rh1 {[%emt 0:00:34]} Nxc4 {[%emt 0:00:31]} 54. Rh7+ {[%emt 0:00:19]} Kf8 {[%emt 0:00:19]} 55. Kg3 {[%emt 0:00:21]} Ra3+ {[%emt 0:00:13]} 56. Kh4 {[%emt 0:00:42]} Ne3 {[%emt 0:00:35]} 57. Kh5 {[%emt 0:00:10]} Nxg2 {[%emt 0:00:36]} 58. Kg6 {[%emt 0:00:12]} Rg3+ {[%emt 0:00:40]} 59. Kxf6 {[%emt 0:00:02]} Ne3 {[%emt 0:00:36]} 60. Rf7+ {[%emt 0:01:34]} Ke8 {[%emt 0:00:17]} 61. Re7+ {[%emt 0:00:03]} Kd8 {[%emt 0:00:41]} 62. Rb7 {[%emt 0:00:51]} Nc4 {[%emt 0:00:26]} 63. Ke6 {[%emt 0:00:45]} Rg4 {[%emt 0:00:49]} 64. Kd5 {[%emt 0:00:29]} Nd2 {[%emt 0:00:25]} 0-1

[Event "2nd Cambridge Open 2024"]
[Site "Cambridge"]
[Date "2024.02.21"]
[Round "5.41"]
[White "Rida, Ruqayyah"]
[Black "Davison, Chris"]
[Result "1-0"]
[ECO "C42"]
[WhiteElo "1743"]
[BlackElo "2013"]
[Annotator "RC"]
[PlyCount "97"]
[EventDate "2024.02.18"]
[EventType "swiss"]
[EventCountry "ENG"]
[SourceTitle "playchess.com"]
[Source "ChessBase"]
[SourceQuality "1"]
[TimeControl "5400+30"]

1. e4 {[%emt 0:00:20]} e5 {[%emt 0:00:06]} 2. Nf3 {[%emt 0:00:13]} Nf6 {[%emt 0:00:06]} 3. Nxe5 {[%emt 0:00:42]} d6 {[%emt 0:00:04]} 4. Nf3 {[%emt 0:00:19]} Nxe4 {[%emt 0:00:05]} 5. d4 {[%emt 0:00:09]} d5 {[%emt 0:00:05]} 6. Bd3 {[%emt 0:00:35]} Bd6 {[%emt 0:00:06]} 7. O-O {[%emt 0:00:36]} O-O {[%emt 0:00:07]} 8. c4 {[%emt 0:00:45]} c6 {[%emt 0:00:08]} 9. Qc2 {[%emt 0:04:00]} Re8 {[%emt 0:07:45]} 10. Nc3 {[%emt 0:05:50]} Na6 {[%emt 0:02:41]} 11. a3 {[%emt 0:01:11]} Bg4 {[%emt 0:01:43]} 12. Ne1 {[%emt 0:20:10]} Nxc3 {[%emt 0:05:39]} 13. bxc3 {[%emt 0:02:05]} Qh4 {[%emt 0:04:17]} 14. h3 {[%emt 0:11:32]} dxc4 {[%emt 0:10:46]} 15. Bxc4 {[%emt 0:05:31]} Nc7 {[%emt 0:02:13]} 16. Qd2 {[%emt 0:11:51]} h6 {[%emt 0:04:40]} 17. f4 {[%emt 0:02:50]} b5 {[%emt 0:06:38]} 18. Bd3 {[%emt 0:04:07]} Bh5 {[%emt 0:04:41]} 19. Qf2 {[%emt 0:03:34]} Qxf2+ {[%emt 0:02:57]} 20. Kxf2 {[%emt 0:00:25]} f6 {[%emt 0:00:46]} 21. Bd2 {[%emt 0:03:28]} Nd5 {[%emt 0:01:01]} 22. g3 {[%emt 0:00:40]} Nb6 {[%emt 0:00:14]} 23. Nc2 {[%emt 0:03:06]} a5 {[%emt 0:01:36]} 24. Ne3 {[%emt 0:02:25]} Bf7 {[%emt 0:01:29]} 25. Rfb1 {[%emt 0:03:28]} a4 {[%emt 0:05:39]} 26. Be2 {[%emt 0:02:57]} Bg6 {[%emt 0:02:18]} 27. Rc1 {[%emt 0:01:39]} Be4 {[%emt 0:14:57]} 28. c4 {[%emt 0:04:00]} Nxc4 {[%emt 0:01:17]} 29. Bxc4+ {[%emt 0:01:47]} bxc4 {[%emt 0:00:05]} 30. Nxc4 {[%emt 0:00:13]} Bc7 {[%emt 0:00:42]} 31. Bb4 {[%emt 0:00:23]} Bd3 {[%emt 0:03:37]} 32. Rc3 {[%emt 0:01:16]} Re2+ {[%emt 0:01:01]} 33. Kf3 {[%emt 0:00:55]} Bxc4 {[%emt 0:00:05]} 34. Rxc4 {[%emt 0:00:06]} Rae8 {[%emt 0:00:12]} 35. Rxc6 {[%emt 0:03:28]} f5 {[%emt 0:02:38]} 36. Rc3 {[%emt 0:00:28]} Bd8 {[%emt 0:01:00]} 37. Rd1 {[%emt 0:01:20]} R8e4 {[%emt 0:01:53]} 38. Bd6 {[%emt 0:00:31]} Bf6 {[%emt 0:00:58]} 39. Be5 {[%emt 0:00:30]} Be7 {[%emt 0:02:23]} 40. Rb1 {[%emt 0:00:29]} Ra2 {[%emt 0:05:07]} 41. d5 {[%emt 0:00:31]} Rxa3 {[%emt 0:00:43]} 42. Rxa3 {[%emt 0:00:26]} Bxa3 {[%emt 0:00:05]} 43. d6 {[%emt 0:00:27]} Kf7 {[%emt 0:01:25]} 44. d7 {[%emt 0:00:37]} Be7 {[%emt 0:01:12]} 45. Rb8 {[%emt 0:00:23]} a3 {[%emt 0:00:20]} 46. d8=Q {[%emt 0:00:07]} Bxd8 {[%emt 0:00:08]} 47. Rxd8 {[%emt 0:00:06]} g5 {[%emt 0:00:16]} 48. Ra8 {[%emt 0:00:12]} gxf4 {[%emt 0:00:13]} 49. Bxf4 {[%emt 0:00:39]} 1-0